[Event "December 19 Late 2023"]
[Site "https://www.chess.com"]
[Date "2023.12.19"]
[Round "8"]
[White "Janaszak, Dawid"]
[Black "Skibbe, Willi"]
[Result "1-0"]
[Board "81"]
[TimeControl "180+1"]
[WhiteFideId "1119206"]
[BlackFideId "4682190"]
[WhiteElo "2218"]
[BlackElo "2378"]
[WhiteTeam "POL"]
[BlackTeam "GER"]
[WhiteClock "0:01:42"]
[BlackClock "0:00:51"]

1. e4 {[%clk 0:03:00]}  e5 {[%clk 0:02:58]} 2. Nc3 {[%clk 0:03:00]}  Nc6 {[%clk 0:02:49]} 3. Bc4 {[%clk 0:02:57]}  Nf6 {[%clk 0:02:48]} 4. d3 {[%clk 0:02:57]}  Na5 {[%clk 0:02:48]} 5. Qf3 {[%clk 0:02:51]}  Nxc4 {[%clk 0:02:46]} 6. dxc4 {[%clk 0:02:51]}  d6 {[%clk 0:02:44]} 7. h3 {[%clk 0:02:48]}  Be7 {[%clk 0:02:43]} 8. Be3 {[%clk 0:02:47]}  b6 {[%clk 0:02:42]} 9. Nge2 {[%clk 0:02:46]}  Be6 {[%clk 0:02:42]} 10. b3 {[%clk 0:02:45]}  O-O {[%clk 0:02:40]} 11. g4 {[%clk 0:02:41]}  Nd7 {[%clk 0:02:35]} 12. h4 {[%clk 0:02:39]}  f6 {[%clk 0:02:26]} 13. Ng3 {[%clk 0:02:36]}  a5 {[%clk 0:02:19]} 14. a4 {[%clk 0:02:35]}  Nc5 {[%clk 0:02:19]} 15. O-O-O {[%clk 0:02:34]}  Qe8 {[%clk 0:02:17]} 16. Nf5 {[%clk 0:02:32]}  Rf7 {[%clk 0:02:15]} 17. Rhg1 {[%clk 0:02:20]}  Bf8 {[%clk 0:02:14]} 18. Kb2 {[%clk 0:02:15]}  g6 {[%clk 0:02:08]} 19. Nh6+ {[%clk 0:02:10]}  Bxh6 {[%clk 0:02:08]} 20. Bxh6 {[%clk 0:02:11]}  Kh8 {[%clk 0:02:08]} 21. Be3 {[%clk 0:02:09]}  Qe7 {[%clk 0:01:52]} 22. Qg3 {[%clk 0:02:03]}  Raf8 {[%clk 0:01:46]} 23. f4 {[%clk 0:02:03]}  exf4 {[%clk 0:01:12]} 24. Qxf4 {[%clk 0:02:04]}  f5 {[%clk 0:01:12]} 25. gxf5 {[%clk 0:01:59]}  Bxf5 {[%clk 0:01:10]} 26. Bd4+ {[%clk 0:01:53]}  Kg8 {[%clk 0:01:09]} 27. exf5 {[%clk 0:01:52]}  Rxf5 {[%clk 0:01:10]} 28. Qh6 {[%clk 0:01:42]}  R8f7 {[%clk 0:00:53]} 29. Rxg6+ {[%clk 0:01:41]}  hxg6 {[%clk 0:00:51]} 30. Qh8# {[%clk 0:01:42]} 1-0

[Event "December 19 Late 2023"]
[Site "https://www.chess.com"]
[Date "2023.12.19"]
[Round "8"]
[White "Grapsa, Georgia"]
[Black "Ibadov, Dashgyn"]
[Result "1-0"]
[Board "82"]
[TimeControl "180+1"]
[WhiteFideId "4206436"]
[BlackFideId "24107514"]
[WhiteElo "1794"]
[BlackElo "2183"]
[WhiteTeam "GRE"]
[BlackTeam "FID"]
[WhiteClock "0:00:32"]
[BlackClock "0:00:12"]

1. e4 {[%clk 0:02:52]}  e5 {[%clk 0:02:58]} 2. Nf3 {[%clk 0:02:51]}  Nc6 {[%clk 0:02:59]} 3. Bb5 {[%clk 0:02:52]}  a6 {[%clk 0:02:58]} 4. Ba4 {[%clk 0:02:52]}  Nf6 {[%clk 0:02:58]} 5. Bxc6 {[%clk 0:02:53]}  dxc6 {[%clk 0:02:58]} 6. d3 {[%clk 0:02:54]}  Bd6 {[%clk 0:02:58]} 7. Nbd2 {[%clk 0:02:55]}  Be6 {[%clk 0:02:57]} 8. b3 {[%clk 0:02:55]}  Nd7 {[%clk 0:02:56]} 9. Bb2 {[%clk 0:02:54]}  f6 {[%clk 0:02:54]} 10. h4 {[%clk 0:02:25]}  Qe7 {[%clk 0:02:53]} 11. Qe2 {[%clk 0:02:04]}  O-O-O {[%clk 0:02:52]} 12. O-O-O {[%clk 0:02:03]}  c5 {[%clk 0:02:34]} 13. Kb1 {[%clk 0:01:58]}  Nb8 {[%clk 0:02:34]} 14. Nc4 {[%clk 0:01:52]}  Nc6 {[%clk 0:02:33]} 15. Ne3 {[%clk 0:01:50]}  Nd4 {[%clk 0:02:32]} 16. Nxd4 {[%clk 0:01:48]}  cxd4 {[%clk 0:02:33]} 17. Nf5 {[%clk 0:01:47]}  Qd7 {[%clk 0:02:26]} 18. Nxd6+ {[%clk 0:01:44]}  cxd6 {[%clk 0:02:20]} 19. c3 {[%clk 0:01:40]}  dxc3 {[%clk 0:02:19]} 20. Rc1 {[%clk 0:01:39]}  Kb8 {[%clk 0:02:18]} 21. Rxc3 {[%clk 0:01:39]}  d5 {[%clk 0:02:17]} 22. Rhc1 {[%clk 0:01:18]}  Rc8 {[%clk 0:01:52]} 23. Rxc8+ {[%clk 0:01:15]}  Rxc8 {[%clk 0:01:53]} 24. Rxc8+ {[%clk 0:01:15]}  Qxc8 {[%clk 0:01:54]} 25. Qc2 {[%clk 0:01:13]}  Qd7 {[%clk 0:01:45]} 26. Ba3 {[%clk 0:01:11]}  f5 {[%clk 0:01:33]} 27. Qc5 {[%clk 0:00:58]}  dxe4 {[%clk 0:01:15]} 28. Qxe5+ {[%clk 0:00:55]}  Ka8 {[%clk 0:01:14]} 29. dxe4 {[%clk 0:00:50]}  Qd1+ {[%clk 0:01:12]} 30. Bc1 {[%clk 0:00:50]}  Qd3+ {[%clk 0:01:09]} 31. Kb2 {[%clk 0:00:51]}  Qe2+ {[%clk 0:00:29]} 32. Ka3 {[%clk 0:00:40]}  Bc8 {[%clk 0:00:22]} 33. Bf4 {[%clk 0:00:37]}  Ka7 {[%clk 0:00:14]} 34. Qb8+ {[%clk 0:00:35]}  Kb6 {[%clk 0:00:15]} 35. Qxc8 {[%clk 0:00:34]}  Qxe4 {[%clk 0:00:12]} 36. Be3+ {[%clk 0:00:32]} 1-0

[Event "December 19 Late 2023"]
[Site "https://www.chess.com"]
[Date "2023.12.19"]
[Round "8"]
[White "Przybylski, Wojciech"]
[Black "Smith, Garrett L"]
[Result "0-1"]
[Board "83"]
[TimeControl "180+1"]
[WhiteFideId "1117599"]
[BlackFideId "2024829"]
[WhiteElo "2203"]
[BlackElo "2372"]
[WhiteTeam "POL"]
[BlackTeam "USA"]
[WhiteClock "0:00:03"]
[BlackClock "0:00:47"]

1. e4 {[%clk 0:03:00]}  c5 {[%clk 0:03:00]} 2. Nf3 {[%clk 0:03:00]}  Nc6 {[%clk 0:03:00]} 3. d4 {[%clk 0:03:00]}  cxd4 {[%clk 0:03:01]} 4. Nxd4 {[%clk 0:03:01]}  e5 {[%clk 0:03:01]} 5. Nb5 {[%clk 0:03:00]}  d6 {[%clk 0:03:01]} 6. c4 {[%clk 0:02:59]}  Be7 {[%clk 0:03:01]} 7. Be2 {[%clk 0:02:58]}  Nf6 {[%clk 0:03:00]} 8. N5c3 {[%clk 0:02:57]}  h6 {[%clk 0:02:58]} 9. O-O {[%clk 0:02:57]}  Be6 {[%clk 0:02:59]} 10. b3 {[%clk 0:02:55]}  Rc8 {[%clk 0:02:59]} 11. Bb2 {[%clk 0:02:54]}  Nd4 {[%clk 0:02:55]} 12. Nd2 {[%clk 0:02:53]}  a6 {[%clk 0:02:50]} 13. Nf3 {[%clk 0:02:52]}  Nxe2+ {[%clk 0:02:40]} 14. Qxe2 {[%clk 0:02:49]}  Qc7 {[%clk 0:02:40]} 15. Ne1 {[%clk 0:02:46]}  Qc6 {[%clk 0:02:38]} 16. Nc2 {[%clk 0:02:39]}  O-O {[%clk 0:02:35]} 17. Rae1 {[%clk 0:02:39]}  b5 {[%clk 0:02:30]} 18. cxb5 {[%clk 0:02:32]}  axb5 {[%clk 0:02:29]} 19. Nb4 {[%clk 0:02:32]}  Qb7 {[%clk 0:02:15]} 20. Qd3 {[%clk 0:02:07]}  Rc5 {[%clk 0:02:10]} 21. Rc1 {[%clk 0:02:02]}  Rfc8 {[%clk 0:02:09]} 22. h3 {[%clk 0:02:01]}  Bc4 {[%clk 0:02:00]} 23. bxc4 {[%clk 0:01:54]}  bxc4 {[%clk 0:02:01]} 24. Qe2 {[%clk 0:01:37]}  Qxb4 {[%clk 0:02:01]} 25. Rb1 {[%clk 0:01:38]}  Qa5 {[%clk 0:02:01]} 26. f4 {[%clk 0:01:33]}  exf4 {[%clk 0:01:57]} 27. Rxf4 {[%clk 0:01:33]}  Rb8 {[%clk 0:01:51]} 28. Rbf1 {[%clk 0:01:30]}  Rc7 {[%clk 0:01:39]} 29. Ba1 {[%clk 0:01:28]}  Rcb7 {[%clk 0:01:34]} 30. Qxc4 {[%clk 0:01:22]}  Qg5 {[%clk 0:01:24]} 31. Rf5 {[%clk 0:01:13]}  Qg3 {[%clk 0:01:24]} 32. R5f3 {[%clk 0:01:12]}  Qg5 {[%clk 0:01:24]} 33. Kh2 {[%clk 0:01:03]}  Bf8 {[%clk 0:01:23]} 34. Rg3 {[%clk 0:00:59]}  Qh4 {[%clk 0:01:20]} 35. Ne2 {[%clk 0:00:50]}  d5 {[%clk 0:01:06]} 36. Qa6 {[%clk 0:00:31]}  Nxe4 {[%clk 0:01:00]} 37. Rg4 {[%clk 0:00:28]}  Qd8 {[%clk 0:00:55]} 38. Qxh6 {[%clk 0:00:20]}  Qd6+ {[%clk 0:00:52]} 39. Qxd6 {[%clk 0:00:18]}  Bxd6+ {[%clk 0:00:53]} 40. Nf4 {[%clk 0:00:10]}  g5 {[%clk 0:00:50]} 41. h4 {[%clk 0:00:06]}  f5 {[%clk 0:00:48]} 42. Rxg5+ {[%clk 0:00:05]}  Nxg5 {[%clk 0:00:49]} 43. hxg5 {[%clk 0:00:06]}  Rb1 {[%clk 0:00:48]} 44. Rxb1 {[%clk 0:00:02]}  Bxf4+ {[%clk 0:00:48]} 45. g3 {[%clk 0:00:02]}  Rxb1 {[%clk 0:00:48]} 46. Bc3 {[%clk 0:00:02]}  Bd6 {[%clk 0:00:46]} 47. a4 {[%clk 0:00:02]}  Rc1 {[%clk 0:00:46]} 48. Bd2 {[%clk 0:00:02]}  Rc2 {[%clk 0:00:46]} 49. Kh3 {[%clk 0:00:02]}  Rxd2 {[%clk 0:00:46]} 50. a5 {[%clk 0:00:03]}  Rd3 {[%clk 0:00:46]} 51. g6 {[%clk 0:00:03]}  Rxg3+ {[%clk 0:00:46]} 52. Kh4 {[%clk 0:00:04]}  Ra3 {[%clk 0:00:46]} 53. a6 {[%clk 0:00:04]}  Rxa6 {[%clk 0:00:46]} 54. Kg5 {[%clk 0:00:05]}  Kg7 {[%clk 0:00:46]} 55. Kxf5 {[%clk 0:00:05]}  d4 {[%clk 0:00:46]} 56. Ke4 {[%clk 0:00:03]}  Be7 {[%clk 0:00:47]} 0-1

[Event "December 19 Late 2023"]
[Site "https://www.chess.com"]
[Date "2023.12.19"]
[Round "8"]
[White "Su, Dion"]
[Black "Ferreira, Vitor Hugo Vieira"]
[Result "0-1"]
[Board "85"]
[TimeControl "180+1"]
[WhiteFideId "2029731"]
[BlackFideId "2119765"]
[WhiteElo "2370"]
[BlackElo "2123"]
[WhiteTeam "USA"]
[BlackTeam "BRA"]
[WhiteClock "0:00:16"]
[BlackClock "0:00:08"]

1. e4 {[%clk 0:03:00]}  c5 {[%clk 0:03:00]} 2. Nf3 {[%clk 0:03:00]}  d6 {[%clk 0:03:00]} 3. d4 {[%clk 0:03:00]}  cxd4 {[%clk 0:03:01]} 4. Nxd4 {[%clk 0:03:01]}  Nf6 {[%clk 0:03:01]} 5. Nc3 {[%clk 0:03:01]}  a6 {[%clk 0:03:02]} 6. Be3 {[%clk 0:03:02]}  e5 {[%clk 0:03:02]} 7. Nb3 {[%clk 0:03:02]}  Be6 {[%clk 0:03:02]} 8. f3 {[%clk 0:03:02]}  h5 {[%clk 0:03:02]} 9. Qd2 {[%clk 0:03:02]}  Nbd7 {[%clk 0:03:01]} 10. O-O-O {[%clk 0:03:02]}  Qc7 {[%clk 0:02:59]} 11. Kb1 {[%clk 0:03:00]}  b5 {[%clk 0:02:58]} 12. Nd5 {[%clk 0:03:00]}  Bxd5 {[%clk 0:02:58]} 13. exd5 {[%clk 0:03:00]}  g6 {[%clk 0:02:58]} 14. Na5 {[%clk 0:02:51]}  Bg7 {[%clk 0:02:55]} 15. c4 {[%clk 0:02:50]}  bxc4 {[%clk 0:02:48]} 16. Bxc4 {[%clk 0:02:48]}  O-O {[%clk 0:02:45]} 17. Nc6 {[%clk 0:02:48]}  Nb8 {[%clk 0:02:43]} 18. Rc1 {[%clk 0:02:42]}  Nxc6 {[%clk 0:02:39]} 19. dxc6 {[%clk 0:02:43]}  d5 {[%clk 0:02:38]} 20. Bb3 {[%clk 0:02:40]}  a5 {[%clk 0:02:33]} 21. Ba4 {[%clk 0:02:32]}  Rfb8 {[%clk 0:02:30]} 22. Bc5 {[%clk 0:02:24]}  d4 {[%clk 0:02:20]} 23. g4 {[%clk 0:02:05]}  hxg4 {[%clk 0:02:19]} 24. fxg4 {[%clk 0:02:05]}  Ne4 {[%clk 0:02:18]} 25. Qc2 {[%clk 0:01:55]}  Nc3+ {[%clk 0:02:07]} 26. Ka1 {[%clk 0:01:53]}  Nxa4 {[%clk 0:01:32]} 27. Qxa4 {[%clk 0:01:54]}  d3 {[%clk 0:01:31]} 28. Rhd1 {[%clk 0:01:37]}  e4 {[%clk 0:01:30]} 29. Ba3 {[%clk 0:01:33]}  Qxh2 {[%clk 0:01:19]} 30. Rb1 {[%clk 0:01:29]}  Qc2 {[%clk 0:01:08]} 31. Qxe4 {[%clk 0:01:25]}  Rd8 {[%clk 0:01:00]} 32. c7 {[%clk 0:01:14]}  Qxc7 {[%clk 0:00:59]} 33. Rxd3 {[%clk 0:01:13]}  Re8 {[%clk 0:00:57]} 34. Qf3 {[%clk 0:01:10]}  Rad8 {[%clk 0:00:50]} 35. Rbd1 {[%clk 0:01:06]}  Rxd3 {[%clk 0:00:49]} 36. Qxd3 {[%clk 0:01:07]}  Qf4 {[%clk 0:00:45]} 37. Qd7 {[%clk 0:01:01]}  Re2 {[%clk 0:00:35]} 38. Qd8+ {[%clk 0:00:57]}  Kh7 {[%clk 0:00:35]} 39. Qxa5 {[%clk 0:00:40]}  Rh2 {[%clk 0:00:15]} 40. Qd5 {[%clk 0:00:30]}  Qxg4 {[%clk 0:00:12]} 41. Rh1 {[%clk 0:00:24]}  Qh3 {[%clk 0:00:11]} 42. Rd1 {[%clk 0:00:16]}  Qxa3 {[%clk 0:00:08]} 0-1

[Event "December 19 Late 2023"]
[Site "https://www.chess.com"]
[Date "2023.12.19"]
[Round "8"]
[White "Korol, Dimitry"]
[Black "Stojanovski, Sandi"]
[Result "0-1"]
[Board "86"]
[TimeControl "180+1"]
[WhiteFideId "14108003"]
[BlackFideId "1403249"]
[WhiteElo "2262"]
[BlackElo "2511"]
[WhiteTeam "UKR"]
[BlackTeam "DEN"]
[WhiteClock "0:00:06"]
[BlackClock "0:00:12"]

1. d4 {[%clk 0:03:00]}  Nf6 {[%clk 0:02:59]} 2. c4 {[%clk 0:03:01]}  e6 {[%clk 0:02:59]} 3. Nc3 {[%clk 0:03:01]}  Bb4 {[%clk 0:02:58]} 4. Qc2 {[%clk 0:03:02]}  c5 {[%clk 0:02:57]} 5. dxc5 {[%clk 0:03:02]}  Na6 {[%clk 0:02:45]} 6. Nf3 {[%clk 0:03:00]}  Nxc5 {[%clk 0:02:43]} 7. Bd2 {[%clk 0:03:01]}  O-O {[%clk 0:02:42]} 8. e3 {[%clk 0:03:01]}  b6 {[%clk 0:02:35]} 9. Be2 {[%clk 0:03:01]}  Bb7 {[%clk 0:02:35]} 10. O-O {[%clk 0:03:02]}  Rc8 {[%clk 0:02:36]} 11. Rfd1 {[%clk 0:03:01]}  Qe7 {[%clk 0:02:25]} 12. Rac1 {[%clk 0:02:43]}  Rfd8 {[%clk 0:02:04]} 13. h3 {[%clk 0:02:40]}  h6 {[%clk 0:02:03]} 14. Nb5 {[%clk 0:02:09]}  Bxd2 {[%clk 0:01:57]} 15. Qxd2 {[%clk 0:02:09]}  Nce4 {[%clk 0:01:51]} 16. Qd4 {[%clk 0:02:05]}  a6 {[%clk 0:01:40]} 17. Nd6 {[%clk 0:01:07]}  Qxd6 {[%clk 0:01:37]} 18. Qxd6 {[%clk 0:01:08]}  Nxd6 {[%clk 0:01:37]} 19. Rxd6 {[%clk 0:01:08]}  b5 {[%clk 0:01:38]} 20. Rb6 {[%clk 0:01:00]}  Bxf3 {[%clk 0:01:23]} 21. gxf3 {[%clk 0:00:57]}  Rc6 {[%clk 0:01:00]} 22. Rxc6 {[%clk 0:00:21]}  dxc6 {[%clk 0:00:59]} 23. cxb5 {[%clk 0:00:20]}  cxb5 {[%clk 0:00:59]} 24. Rc6 {[%clk 0:00:14]}  Rd2 {[%clk 0:00:56]} 25. Kf1 {[%clk 0:00:14]}  Rxb2 {[%clk 0:00:53]} 26. Rxa6 {[%clk 0:00:15]}  b4 {[%clk 0:00:52]} 27. Bd3 {[%clk 0:00:13]}  g6 {[%clk 0:00:51]} 28. f4 {[%clk 0:00:12]}  Nd5 {[%clk 0:00:46]} 29. Bc4 {[%clk 0:00:12]}  Nc3 {[%clk 0:00:43]} 30. Bb3 {[%clk 0:00:12]}  Ne4 {[%clk 0:00:41]} 31. Rb6 {[%clk 0:00:11]}  Rxf2+ {[%clk 0:00:14]} 32. Kg1 {[%clk 0:00:11]}  Rf3 {[%clk 0:00:12]} 33. Rxb4 {[%clk 0:00:11]}  Rxe3 {[%clk 0:00:13]} 34. a4 {[%clk 0:00:11]}  Nd2 {[%clk 0:00:12]} 35. Bc2 {[%clk 0:00:10]}  Ra3 {[%clk 0:00:12]} 36. Rd4 {[%clk 0:00:09]}  Nf3+ {[%clk 0:00:12]} 37. Kf2 {[%clk 0:00:06]}  Nxd4 {[%clk 0:00:12]} 0-1

[Event "December 19 Late 2023"]
[Site "https://www.chess.com"]
[Date "2023.12.19"]
[Round "8"]
[White "Chess_Star1234"]
[Black "Rangel, Daniel"]
[Result "0-1"]
[Board "88"]
[TimeControl "180+1"]
[BlackFideId "2124475"]
[WhiteElo "2356"]
[BlackElo "2267"]
[BlackTeam "BRA"]
[WhiteClock "0:00:25"]
[BlackClock "0:01:16"]

1. d4 {[%clk 0:03:00]}  Nf6 {[%clk 0:02:59]} 2. c4 {[%clk 0:03:01]}  e6 {[%clk 0:02:59]} 3. Nc3 {[%clk 0:03:02]}  d5 {[%clk 0:03:00]} 4. cxd5 {[%clk 0:03:01]}  exd5 {[%clk 0:03:00]} 5. Bg5 {[%clk 0:03:02]}  Be6 {[%clk 0:03:00]} 6. e3 {[%clk 0:03:02]}  c6 {[%clk 0:03:00]} 7. Bd3 {[%clk 0:03:02]}  Nbd7 {[%clk 0:03:00]} 8. Nf3 {[%clk 0:03:01]}  Bd6 {[%clk 0:03:00]} 9. O-O {[%clk 0:03:01]}  Rc8 {[%clk 0:02:56]} 10. Rb1 {[%clk 0:02:55]}  O-O {[%clk 0:02:50]} 11. b4 {[%clk 0:02:54]}  b5 {[%clk 0:02:50]} 12. a4 {[%clk 0:02:54]}  a6 {[%clk 0:02:50]} 13. a5 {[%clk 0:02:53]}  Qe7 {[%clk 0:02:46]} 14. Na2 {[%clk 0:02:46]}  h6 {[%clk 0:02:36]} 15. Bh4 {[%clk 0:02:44]}  g5 {[%clk 0:02:30]} 16. Bg3 {[%clk 0:02:44]}  Ne4 {[%clk 0:02:28]} 17. Bxd6 {[%clk 0:02:37]}  Nxd6 {[%clk 0:02:23]} 18. Nd2 {[%clk 0:02:27]}  f5 {[%clk 0:02:21]} 19. Qh5 {[%clk 0:02:20]}  Kg7 {[%clk 0:02:21]} 20. Rbc1 {[%clk 0:02:15]}  Nc4 {[%clk 0:02:19]} 21. Nb3 {[%clk 0:02:13]}  Bf7 {[%clk 0:02:15]} 22. Qf3 {[%clk 0:02:00]}  Bg6 {[%clk 0:02:12]} 23. Rfe1 {[%clk 0:01:50]}  Nf6 {[%clk 0:02:12]} 24. Nc5 {[%clk 0:01:47]}  Ne4 {[%clk 0:02:11]} 25. Nxa6 {[%clk 0:01:44]}  f4 {[%clk 0:02:02]} 26. Qd1 {[%clk 0:01:22]}  fxe3 {[%clk 0:01:55]} 27. f3 {[%clk 0:01:23]}  Nf2 {[%clk 0:01:53]} 28. Bxc4 {[%clk 0:00:52]}  Nxd1 {[%clk 0:01:49]} 29. Rcxd1 {[%clk 0:00:52]}  bxc4 {[%clk 0:01:47]} 30. Nc5 {[%clk 0:00:52]}  Rb8 {[%clk 0:01:43]} 31. a6 {[%clk 0:00:51]}  Bc2 {[%clk 0:01:40]} 32. Rc1 {[%clk 0:00:51]}  Bb3 {[%clk 0:01:40]} 33. Re2 {[%clk 0:00:35]}  Bxa2 {[%clk 0:01:38]} 34. Rxa2 {[%clk 0:00:36]}  Rxb4 {[%clk 0:01:37]} 35. a7 {[%clk 0:00:36]}  Ra8 {[%clk 0:01:35]} 36. Re1 {[%clk 0:00:30]}  Rxa7 {[%clk 0:01:34]} 37. Rxa7 {[%clk 0:00:29]}  Qxa7 {[%clk 0:01:35]} 38. Rxe3 {[%clk 0:00:30]}  Rb1+ {[%clk 0:01:32]} 39. Kf2 {[%clk 0:00:30]}  Rb2+ {[%clk 0:01:32]} 40. Kg3 {[%clk 0:00:30]}  Qb8+ {[%clk 0:01:32]} 41. Kh3 {[%clk 0:00:30]}  Qc8+ {[%clk 0:01:29]} 42. Kg3 {[%clk 0:00:30]}  h5 {[%clk 0:01:17]} 43. Ne6+ {[%clk 0:00:28]}  Kf6 {[%clk 0:01:17]} 44. Nc5 {[%clk 0:00:25]}  h4# {[%clk 0:01:16]} 0-1

[Event "December 19 Late 2023"]
[Site "https://www.chess.com"]
[Date "2023.12.19"]
[Round "8"]
[White "Kepeshchuk, Mykhaylo"]
[Black "Ardila, Oscar Humberto"]
[Result "0-1"]
[Board "91"]
[TimeControl "180+1"]
[WhiteFideId "14113139"]
[BlackFideId "4404742"]
[WhiteElo "2279"]
[BlackElo "1915"]
[WhiteTeam "UKR"]
[BlackTeam "COL"]
[WhiteClock "0:00:00"]
[BlackClock "0:00:45"]

1. d4 {[%clk 0:03:00]}  Nf6 {[%clk 0:02:59]} 2. c4 {[%clk 0:03:01]}  e6 {[%clk 0:02:59]} 3. g3 {[%clk 0:03:00]}  Bb4+ {[%clk 0:02:58]} 4. Nd2 {[%clk 0:03:00]}  O-O {[%clk 0:02:54]} 5. Nf3 {[%clk 0:03:00]}  d5 {[%clk 0:02:53]} 6. Bg2 {[%clk 0:02:59]}  c6 {[%clk 0:02:53]} 7. O-O {[%clk 0:02:58]}  Ne4 {[%clk 0:02:51]} 8. Nxe4 {[%clk 0:02:50]}  dxe4 {[%clk 0:02:51]} 9. Ne1 {[%clk 0:02:48]}  f5 {[%clk 0:02:49]} 10. Nc2 {[%clk 0:02:47]}  Bd6 {[%clk 0:02:42]} 11. f3 {[%clk 0:02:44]}  exf3 {[%clk 0:02:40]} 12. Rxf3 {[%clk 0:02:43]}  Nd7 {[%clk 0:02:37]} 13. e4 {[%clk 0:02:36]}  fxe4 {[%clk 0:02:34]} 14. Rxf8+ {[%clk 0:02:36]}  Qxf8 {[%clk 0:02:33]} 15. Bxe4 {[%clk 0:02:36]}  Nf6 {[%clk 0:02:33]} 16. Bg2 {[%clk 0:02:32]}  e5 {[%clk 0:02:34]} 17. dxe5 {[%clk 0:01:56]}  Bxe5 {[%clk 0:02:32]} 18. Ne3 {[%clk 0:01:42]}  Be6 {[%clk 0:02:24]} 19. Qc2 {[%clk 0:01:39]}  Qc5 {[%clk 0:02:20]} 20. Kh1 {[%clk 0:01:34]}  Bd4 {[%clk 0:02:13]} 21. b4 {[%clk 0:01:16]}  Qe5 {[%clk 0:02:05]} 22. Rb1 {[%clk 0:00:35]}  Bxe3 {[%clk 0:02:02]} 23. Qe2 {[%clk 0:00:32]}  Bd4 {[%clk 0:01:58]} 24. Qxe5 {[%clk 0:00:31]}  Bxe5 {[%clk 0:01:58]} 25. b5 {[%clk 0:00:32]}  Bxc4 {[%clk 0:01:55]} 26. bxc6 {[%clk 0:00:31]}  bxc6 {[%clk 0:01:56]} 27. Bxc6 {[%clk 0:00:31]}  Rd8 {[%clk 0:01:54]} 28. Be3 {[%clk 0:00:27]}  Ng4 {[%clk 0:01:49]} 29. Bxa7 {[%clk 0:00:26]}  Bd5+ {[%clk 0:01:47]} 30. Bxd5+ {[%clk 0:00:25]}  Rxd5 {[%clk 0:01:48]} 31. Rb4 {[%clk 0:00:15]}  Rd1+ {[%clk 0:01:44]} 32. Kg2 {[%clk 0:00:15]}  h5 {[%clk 0:01:42]} 33. h3 {[%clk 0:00:12]}  Rd2+ {[%clk 0:01:37]} 34. Kf3 {[%clk 0:00:12]}  Nf6 {[%clk 0:01:24]} 35. g4 {[%clk 0:00:10]}  hxg4+ {[%clk 0:01:19]} 36. hxg4 {[%clk 0:00:11]}  Rd3+ {[%clk 0:01:19]} 37. Ke2 {[%clk 0:00:10]}  Rg3 {[%clk 0:01:18]} 38. Bf2 {[%clk 0:00:08]}  Rg2 {[%clk 0:01:12]} 39. Kf3 {[%clk 0:00:07]}  Rh2 {[%clk 0:01:09]} 40. a4 {[%clk 0:00:08]}  Rh3+ {[%clk 0:01:06]} 41. Kg2 {[%clk 0:00:06]}  Ra3 {[%clk 0:01:05]} 42. g5 {[%clk 0:00:04]}  Nh5 {[%clk 0:01:01]} 43. Be1 {[%clk 0:00:03]}  Nf4+ {[%clk 0:00:58]} 44. Kf1 {[%clk 0:00:03]}  Nd3 {[%clk 0:00:56]} 45. Re4 {[%clk 0:00:03]}  Nxe1 {[%clk 0:00:50]} 46. Rxe5 {[%clk 0:00:01]}  Nf3 {[%clk 0:00:48]} 47. Ra5 {[%clk 0:00:00]}  Kf7 {[%clk 0:00:45]} 0-1

[Event "December 19 Late 2023"]
[Site "https://www.chess.com"]
[Date "2023.12.19"]
[Round "8"]
[White "Dubessay, Bastien"]
[Black "Munoz Sanchez, Miguel"]
[Result "1-0"]
[Board "93"]
[TimeControl "180+1"]
[WhiteFideId "650048"]
[BlackFideId "3600734"]
[WhiteElo "2279"]
[BlackElo "2124"]
[WhiteTeam "FRA"]
[BlackTeam "ECU"]
[WhiteClock "0:00:30"]
[BlackClock "0:00:03"]

1. d4 {[%clk 0:03:00]}  Nf6 {[%clk 0:02:59]} 2. c4 {[%clk 0:02:59]}  g6 {[%clk 0:02:59]} 3. Nc3 {[%clk 0:02:59]}  Bg7 {[%clk 0:02:59]} 4. Nf3 {[%clk 0:02:57]}  d6 {[%clk 0:02:59]} 5. Bg5 {[%clk 0:02:58]}  O-O {[%clk 0:02:59]} 6. e3 {[%clk 0:02:58]}  h6 {[%clk 0:02:56]} 7. Bh4 {[%clk 0:02:58]}  c5 {[%clk 0:02:55]} 8. d5 {[%clk 0:02:58]}  g5 {[%clk 0:02:52]} 9. Bg3 {[%clk 0:02:58]}  Bf5 {[%clk 0:02:49]} 10. Nd2 {[%clk 0:02:55]}  e5 {[%clk 0:02:44]} 11. e4 {[%clk 0:02:49]}  Bg6 {[%clk 0:02:43]} 12. Be2 {[%clk 0:02:49]}  a6 {[%clk 0:02:43]} 13. O-O {[%clk 0:02:47]}  Nbd7 {[%clk 0:02:31]} 14. a4 {[%clk 0:02:46]}  Nh7 {[%clk 0:02:25]} 15. Bh5 {[%clk 0:02:44]}  Bxh5 {[%clk 0:02:20]} 16. Qxh5 {[%clk 0:02:44]}  f5 {[%clk 0:02:17]} 17. exf5 {[%clk 0:02:37]}  Rxf5 {[%clk 0:02:17]} 18. Nde4 {[%clk 0:02:37]}  Qe7 {[%clk 0:02:04]} 19. Qg6 {[%clk 0:02:31]}  Raf8 {[%clk 0:01:49]} 20. Qxd6 {[%clk 0:02:29]}  Qf7 {[%clk 0:01:42]} 21. Qe6 {[%clk 0:02:15]}  Rf6 {[%clk 0:01:42]} 22. Qxf7+ {[%clk 0:02:13]}  R6xf7 {[%clk 0:01:41]} 23. a5 {[%clk 0:02:05]}  Ndf6 {[%clk 0:01:35]} 24. Nxc5 {[%clk 0:02:02]}  Nh5 {[%clk 0:01:33]} 25. N5e4 {[%clk 0:01:56]}  Nf4 {[%clk 0:01:33]} 26. Bxf4 {[%clk 0:01:49]}  gxf4 {[%clk 0:01:31]} 27. f3 {[%clk 0:01:48]}  Ng5 {[%clk 0:01:30]} 28. Nxg5 {[%clk 0:01:47]}  hxg5 {[%clk 0:01:31]} 29. Ne4 {[%clk 0:01:47]}  Bf6 {[%clk 0:01:30]} 30. c5 {[%clk 0:01:45]}  Kg7 {[%clk 0:01:30]} 31. b4 {[%clk 0:01:45]}  Kg6 {[%clk 0:01:26]} 32. Rfe1 {[%clk 0:01:44]}  Rd7 {[%clk 0:01:15]} 33. Rad1 {[%clk 0:01:44]}  Be7 {[%clk 0:01:12]} 34. h3 {[%clk 0:01:41]}  Rfd8 {[%clk 0:01:09]} 35. d6 {[%clk 0:01:41]}  Bf6 {[%clk 0:01:09]} 36. Rd5 {[%clk 0:01:35]}  Bg7 {[%clk 0:01:06]} 37. Nd2 {[%clk 0:01:29]}  Kf5 {[%clk 0:01:05]} 38. Nc4 {[%clk 0:01:22]}  Re8 {[%clk 0:01:05]} 39. Re4 {[%clk 0:01:21]}  Bf6 {[%clk 0:01:03]} 40. Kf2 {[%clk 0:01:04]}  Rdd8 {[%clk 0:01:03]} 41. Ke2 {[%clk 0:01:01]}  Rd7 {[%clk 0:01:02]} 42. Nb6 {[%clk 0:00:59]}  Rdd8 {[%clk 0:01:02]} 43. Kd3 {[%clk 0:00:58]}  Ke6 {[%clk 0:01:02]} 44. Kc4 {[%clk 0:00:58]}  Rh8 {[%clk 0:00:54]} 45. d7 {[%clk 0:00:57]}  Rh7 {[%clk 0:00:50]} 46. Rd6+ {[%clk 0:00:57]}  Kf7 {[%clk 0:00:50]} 47. Kd5 {[%clk 0:00:56]}  Be7 {[%clk 0:00:41]} 48. Rxe5 {[%clk 0:00:48]}  Bxd6 {[%clk 0:00:40]} 49. Kxd6 {[%clk 0:00:47]}  Rhh8 {[%clk 0:00:27]} 50. Re7+ {[%clk 0:00:44]}  Kg6 {[%clk 0:00:26]} 51. Nd5 {[%clk 0:00:43]}  Kf5 {[%clk 0:00:22]} 52. Re5+ {[%clk 0:00:40]}  Kg6 {[%clk 0:00:21]} 53. Nc7 {[%clk 0:00:38]}  Kf6 {[%clk 0:00:20]} 54. Re8 {[%clk 0:00:31]}  Kf7 {[%clk 0:00:16]} 55. Rxd8 {[%clk 0:00:29]}  Rxd8 {[%clk 0:00:03]} 56. Ne6 {[%clk 0:00:30]} 1-0